[Event "GrandPrix_30.05"]
[Site "Chess.com"]
[Date "2020.05.30"]
[Round "2"]
[White "Bosiocic"]
[Black "SoltaniciR"]
[Result "1-0"]
[WhiteElo "2693"]
[BlackElo "2159"]
[TimeControl "600+2"]
[EndTime "8:52:56 PDT"]
[Termination "Bosiocic won by resignation"]

1. d4 {[%clk 0:10:01.9]} 1... Nf6 {[%clk 0:10:00.2]} 2. Bg5 {[%clk 0:10:02.9]}
2... c5 {[%clk 0:09:44.8]} 3. d5 {[%clk 0:10:03]} 3... e6 {[%clk 0:09:16.1]} 4.
Nc3 {[%clk 0:10:00.7]} 4... h6 {[%clk 0:09:15]} 5. Bxf6 {[%clk 0:09:55]} 5...
Qxf6 {[%clk 0:09:15.1]} 6. e4 {[%clk 0:09:55.2]} 6... a6 {[%clk 0:09:13.5]} 7.
Nf3 {[%clk 0:09:50.8]} 7... d6 {[%clk 0:09:02.2]} 8. a4 {[%clk 0:09:35.6]} 8...
e5 {[%clk 0:08:55.6]} 9. a5 {[%clk 0:09:33.1]} 9... h5 {[%clk 0:07:51]} 10. Na4
{[%clk 0:09:32.7]} 10... Nd7 {[%clk 0:07:45.8]} 11. Nd2 {[%clk 0:09:32.8]} 11...
Rb8 {[%clk 0:06:53.6]} 12. Nc4 {[%clk 0:09:32]} 12... g6 {[%clk 0:06:40.8]} 13.
h4 {[%clk 0:09:30.9]} 13... Bh6 {[%clk 0:06:37.4]} 14. g3 {[%clk 0:09:28.6]}
14... O-O {[%clk 0:06:15.9]} 15. Ra3 {[%clk 0:09:24.4]} 15... Qe7 {[%clk
0:05:59.1]} 16. Bh3 {[%clk 0:09:23.1]} 16... Nf6 {[%clk 0:05:58.2]} 17. Bxc8
{[%clk 0:09:23.7]} 17... Rbxc8 {[%clk 0:05:57.3]} 18. f3 {[%clk 0:09:24.7]}
18... Ne8 {[%clk 0:04:57]} 19. Qe2 {[%clk 0:09:17.8]} 19... Ng7 {[%clk 0:04:33]}
20. Rb3 {[%clk 0:08:18.9]} 20... f5 {[%clk 0:04:28.3]} 21. Rb6 {[%clk
0:08:18.9]} 21... Rf6 {[%clk 0:04:07]} 22. Nc3 {[%clk 0:07:34.9]} 22... Rcf8
{[%clk 0:03:55.3]} 23. exf5 {[%clk 0:07:34.6]} 23... Nxf5 {[%clk 0:03:45.7]} 24.
Ne4 {[%clk 0:07:34.2]} 24... Nd4 {[%clk 0:03:45.7]} 25. Nxf6+ {[%clk 0:07:34.2]}
25... Rxf6 {[%clk 0:01:54.3]} 26. Qe4 {[%clk 0:07:33.8]} 26... Nxf3+ {[%clk
0:01:52.9]} 27. Kd1 {[%clk 0:07:31.9]} 27... Nd4 {[%clk 0:01:22.2]} 28. c3
{[%clk 0:07:31.7]} 28... Nf5 {[%clk 0:01:21]} 29. Rg1 {[%clk 0:07:21.9]} 29...
Qd7 {[%clk 0:01:18.4]} 30. Kc2 {[%clk 0:07:05.1]} 30... Qa4+ {[%clk 0:00:59.6]}
31. Kb1 {[%clk 0:07:05]} 31... Ne3 {[%clk 0:00:57.7]} 32. Nxd6 {[%clk
0:06:10.1]} 32... Qxa5 {[%clk 0:00:40.6]} 33. Qxe5 {[%clk 0:06:06.1]} 33... Qa4
{[%clk 0:00:12.6]} 34. Rc1 {[%clk 0:05:41.6]} 34... Ng4 {[%clk 0:00:09]} 35. Qe7
{[%clk 0:03:53]} 35... Bf8 {[%clk 0:00:09.4]} 36. Qe2 {[%clk 0:01:47.4]} 36...
Bxd6 {[%clk 0:00:08.6]} 37. Re1 {[%clk 0:01:44.7]} 37... Qd7 {[%clk 0:00:06.8]}
38. Qe8+ {[%clk 0:01:44.5]} 38... Qxe8 {[%clk 0:00:07.1]} 39. Rxe8+ {[%clk
0:01:44.9]} 39... Kf7 {[%clk 0:00:05.8]} 40. Rh8 {[%clk 0:01:36.8]} 40... Bxg3
{[%clk 0:00:05.9]} 41. Rxb7+ {[%clk 0:01:33.8]} 1-0

[Event "GrandPrix_30.05"]
[Site "Chess.com"]
[Date "2020.05.30"]
[Round "2"]
[White "Gabrielian_Artur"]
[Black "rusuvlad95"]
[Result "1-0"]
[WhiteElo "2299"]
[BlackElo "2096"]
[TimeControl "600+2"]
[EndTime "8:52:57 PDT"]
[Termination "Gabrielian_Artur won by resignation"]

1. e4 {[%clk 0:10:01.9]} 1... e5 {[%clk 0:10:01]} 2. Nc3 {[%clk 0:09:59.3]} 2...
Nf6 {[%clk 0:09:58.8]} 3. g3 {[%clk 0:10:00]} 3... Bc5 {[%clk 0:09:30.4]} 4. Bg2
{[%clk 0:10:00.3]} 4... O-O {[%clk 0:09:26.2]} 5. Nge2 {[%clk 0:09:54.1]} 5...
d6 {[%clk 0:09:22.6]} 6. O-O {[%clk 0:09:46.7]} 6... Nc6 {[%clk 0:09:18.2]} 7.
d3 {[%clk 0:09:30.7]} 7... a5 {[%clk 0:09:13.8]} 8. h3 {[%clk 0:09:29.8]} 8...
h6 {[%clk 0:08:49.2]} 9. Kh2 {[%clk 0:09:29.6]} 9... Nd4 {[%clk 0:08:45.6]} 10.
Nxd4 {[%clk 0:09:27.7]} 10... Bxd4 {[%clk 0:08:42.8]} 11. f4 {[%clk 0:09:26.7]}
11... exf4 {[%clk 0:08:40.6]} 12. Bxf4 {[%clk 0:09:25.2]} 12... Re8 {[%clk
0:08:41.8]} 13. Qf3 {[%clk 0:09:14.6]} 13... Bd7 {[%clk 0:08:38.7]} 14. Rae1
{[%clk 0:09:14.3]} 14... Rb8 {[%clk 0:08:28.2]} 15. Nd1 {[%clk 0:09:14]} 15...
Be5 {[%clk 0:08:24.2]} 16. c3 {[%clk 0:08:56.4]} 16... Bb5 {[%clk 0:08:10.6]}
17. Nf2 {[%clk 0:07:51.3]} 17... c5 {[%clk 0:08:03.1]} 18. Rd1 {[%clk
0:07:31.4]} 18... Bxf4 {[%clk 0:07:53.4]} 19. gxf4 {[%clk 0:07:30]} 19... Bc6
{[%clk 0:07:50.5]} 20. Rfe1 {[%clk 0:07:23.5]} 20... b5 {[%clk 0:07:18.6]} 21.
d4 {[%clk 0:07:18.5]} 21... cxd4 {[%clk 0:06:54.1]} 22. cxd4 {[%clk 0:06:54.1]}
22... Bb7 {[%clk 0:06:52.6]} 23. d5 {[%clk 0:06:51]} 23... Rc8 {[%clk
0:06:36.8]} 24. Rc1 {[%clk 0:06:50.3]} 24... b4 {[%clk 0:06:09.7]} 25. Qd3
{[%clk 0:06:19.5]} 25... Qb6 {[%clk 0:05:56.3]} 26. Qd2 {[%clk 0:06:20.5]} 26...
Nh5 {[%clk 0:05:38.3]} 27. Rxc8 {[%clk 0:06:15.8]} 27... Bxc8 {[%clk 0:05:34.4]}
28. e5 {[%clk 0:05:56.2]} 28... Bf5 {[%clk 0:05:34.9]} 29. Kg1 {[%clk
0:05:34.2]} 29... Rc8 {[%clk 0:05:19.6]} 30. Rc1 {[%clk 0:05:01.4]} 30... Rxc1+
{[%clk 0:04:48.4]} 31. Qxc1 {[%clk 0:05:01.3]} 31... Qd4 {[%clk 0:04:49.9]} 32.
Qd1 {[%clk 0:04:37.3]} 32... Qxd1+ {[%clk 0:04:13.3]} 33. Nxd1 {[%clk
0:04:39.2]} 33... Nxf4 {[%clk 0:04:11.7]} 34. exd6 {[%clk 0:04:38.2]} 34... Kf8
{[%clk 0:04:09.7]} 35. Ne3 {[%clk 0:04:36.9]} 35... Bxh3 {[%clk 0:03:53.5]} 36.
Be4 {[%clk 0:04:24.7]} 36... Ke8 {[%clk 0:03:45.9]} 37. Nc4 {[%clk 0:04:19.9]}
37... a4 {[%clk 0:03:32.7]} 38. Nb6 {[%clk 0:03:49.1]} 38... Bd7 {[%clk
0:03:33.3]} 39. Kf2 {[%clk 0:03:40.8]} 39... g5 {[%clk 0:03:22.1]} 40. Ke3
{[%clk 0:03:38.8]} 40... h5 {[%clk 0:03:22.6]} 41. Bc2 {[%clk 0:03:29.4]} 41...
h4 {[%clk 0:03:12.2]} 42. Kf3 {[%clk 0:03:30.5]} 42... h3 {[%clk 0:02:35.3]} 43.
Kg3 {[%clk 0:03:31.2]} 43... Ne2+ {[%clk 0:02:33]} 44. Kh2 {[%clk 0:03:31.8]}
44... Nd4 {[%clk 0:02:33.7]} 45. Bd1 {[%clk 0:02:57.2]} 45... f5 {[%clk
0:02:23.2]} 46. Kxh3 {[%clk 0:02:53.5]} 46... f4+ {[%clk 0:02:22.1]} 47. Kg2
{[%clk 0:02:54.5]} 47... Nb5 {[%clk 0:02:16.7]} 48. Bxa4 {[%clk 0:02:44.1]}
48... Nxd6 {[%clk 0:01:47.5]} 49. Bxd7+ {[%clk 0:02:40]} 49... Kd8 {[%clk
0:01:47.5]} 50. Bg4 {[%clk 0:02:40.6]} 50... Kc7 {[%clk 0:01:46]} 51. Na4 {[%clk
0:02:40.2]} 51... Nc4 {[%clk 0:01:45.6]} 52. Nc5 {[%clk 0:02:20.7]} 52... Nxb2
{[%clk 0:01:35.1]} 53. Ne4 {[%clk 0:02:14.1]} 53... Nc4 {[%clk 0:01:34.5]} 54.
Be6 {[%clk 0:02:04.7]} 54... g4 {[%clk 0:01:27.5]} 55. d6+ {[%clk 0:01:42.9]}
55... Nxd6 {[%clk 0:01:08.9]} 56. Nxd6 {[%clk 0:01:43.8]} 56... Kxd6 {[%clk
0:01:10.8]} 57. Bxg4 {[%clk 0:01:45.1]} 57... Ke5 {[%clk 0:01:07.4]} 1-0

[Event "GrandPrix_30.05"]
[Site "Chess.com"]
[Date "2020.05.30"]
[Round "2"]
[White "Salnaa"]
[Black "Kiril1965"]
[Result "0-1"]
[WhiteElo "2156"]
[BlackElo "2578"]
[TimeControl "600+2"]
[EndTime "8:53:02 PDT"]
[Termination "Kiril1965 won by resignation"]

1. d4 {[%clk 0:10:01.9]} 1... Nf6 {[%clk 0:09:51.3]} 2. c4 {[%clk 0:10:02.7]}
2... g6 {[%clk 0:09:41.5]} 3. Nc3 {[%clk 0:10:02.6]} 3... d5 {[%clk 0:09:41.3]}
4. Nf3 {[%clk 0:10:03.1]} 4... Bg7 {[%clk 0:09:40.9]} 5. Qb3 {[%clk 0:10:04]}
5... c6 {[%clk 0:09:32.6]} 6. cxd5 {[%clk 0:10:03.1]} 6... Nxd5 {[%clk
0:09:26.1]} 7. e4 {[%clk 0:10:02]} 7... Nxc3 {[%clk 0:09:22.8]} 8. bxc3 {[%clk
0:10:03.9]} 8... O-O {[%clk 0:09:22.5]} 9. Bc4 {[%clk 0:09:29.5]} 9... b5 {[%clk
0:09:15.6]} 10. Be2 {[%clk 0:09:17.8]} 10... Nd7 {[%clk 0:08:51.8]} 11. O-O
{[%clk 0:09:17.1]} 11... Nb6 {[%clk 0:08:49.7]} 12. Be3 {[%clk 0:09:01.9]} 12...
Be6 {[%clk 0:08:48.9]} 13. Qc2 {[%clk 0:08:45.6]} 13... Bc4 {[%clk 0:08:49.3]}
14. Bxc4 {[%clk 0:07:57.3]} 14... Nxc4 {[%clk 0:08:48]} 15. a4 {[%clk
0:07:58.6]} 15... a6 {[%clk 0:08:36.5]} 16. Nd2 {[%clk 0:07:47.7]} 16... Nxe3
{[%clk 0:08:31.5]} 17. fxe3 {[%clk 0:07:49.6]} 17... e5 {[%clk 0:08:29]} 18.
axb5 {[%clk 0:07:43.3]} 18... axb5 {[%clk 0:08:18.1]} 19. Nf3 {[%clk 0:07:13.3]}
19... Qe7 {[%clk 0:08:16.2]} 20. Qd3 {[%clk 0:06:48.6]} 20... Rfd8 {[%clk
0:08:10.3]} 21. g3 {[%clk 0:05:32.9]} 21... h6 {[%clk 0:08:03.1]} 22. Rxa8
{[%clk 0:04:41.3]} 22... Rxa8 {[%clk 0:08:00]} 23. d5 {[%clk 0:04:42.9]} 23...
Qc5 {[%clk 0:07:10.3]} 24. Kg2 {[%clk 0:04:30.3]} 24... Rd8 {[%clk 0:06:55.9]}
25. Rd1 {[%clk 0:04:00.5]} 25... Rd6 {[%clk 0:06:52.3]} 26. g4 {[%clk
0:03:46.7]} 26... Bf6 {[%clk 0:05:24.9]} 27. h4 {[%clk 0:03:44]} 27... cxd5
{[%clk 0:05:04.2]} 28. exd5 {[%clk 0:03:43.6]} 28... b4 {[%clk 0:04:57]} 29. c4
{[%clk 0:03:25.4]} 29... Qa7 {[%clk 0:04:37.2]} 30. h5 {[%clk 0:03:02.1]} 30...
Ra6 {[%clk 0:03:26.9]} 31. hxg6 {[%clk 0:02:40]} 31... e4 {[%clk 0:02:58.6]} 32.
gxf7+ {[%clk 0:02:25.3]} 32... Qxf7 {[%clk 0:02:59]} 33. Qxe4 {[%clk 0:02:25.2]}
33... b3 {[%clk 0:02:55]} 34. d6 {[%clk 0:02:04.2]} 34... Bd8 {[%clk 0:02:14.1]}
35. Rd2 {[%clk 0:01:21.7]} 35... Ra2 {[%clk 0:02:09.6]} 36. d7 {[%clk
0:01:05.1]} 36... Kg7 {[%clk 0:01:39.2]} 37. Qe5+ {[%clk 0:00:49.4]} 37... Qf6
{[%clk 0:01:30.9]} 38. Qxf6+ {[%clk 0:00:37.4]} 38... Kxf6 {[%clk 0:01:12.6]}
39. Kg3 {[%clk 0:00:14.3]} 39... b2 {[%clk 0:01:11.4]} 40. Rd1 {[%clk
0:00:15.6]} 40... Ra1 {[%clk 0:01:12]} 0-1

[Event "GrandPrix_30.05"]
[Site "Chess.com"]
[Date "2020.05.30"]
[Round "2"]
[White "Frozygul"]
[Black "nikosgal"]
[Result "1-0"]
[WhiteElo "2145"]
[BlackElo "2214"]
[TimeControl "600+2"]
[EndTime "8:53:04 PDT"]
[Termination "Frozygul won by resignation"]

1. d4 {[%clk 0:09:56.9]} 1... Nf6 {[%clk 0:10:00.6]} 2. c4 {[%clk 0:09:55.9]}
2... e6 {[%clk 0:10:01.8]} 3. Nf3 {[%clk 0:09:56.9]} 3... d5 {[%clk 0:10:02.1]}
4. Nc3 {[%clk 0:09:57.5]} 4... dxc4 {[%clk 0:10:02.8]} 5. e3 {[%clk 0:09:52.9]}
5... c5 {[%clk 0:09:57.3]} 6. Bxc4 {[%clk 0:09:53.2]} 6... Nc6 {[%clk
0:09:58.2]} 7. O-O {[%clk 0:09:51.2]} 7... a6 {[%clk 0:09:57.5]} 8. Qe2 {[%clk
0:09:45.4]} 8... b5 {[%clk 0:09:56.9]} 9. Bb3 {[%clk 0:09:45.6]} 9... Bb7 {[%clk
0:09:54.9]} 10. Rd1 {[%clk 0:09:46.7]} 10... Qb6 {[%clk 0:09:53.6]} 11. d5
{[%clk 0:09:41.1]} 11... exd5 {[%clk 0:09:50.5]} 12. Nxd5 {[%clk 0:09:43]} 12...
Nxd5 {[%clk 0:09:51.8]} 13. Bxd5 {[%clk 0:09:41.9]} 13... Be7 {[%clk 0:09:51.9]}
14. e4 {[%clk 0:09:41.9]} 14... O-O {[%clk 0:09:40.4]} 15. e5 {[%clk 0:09:39.8]}
15... Rad8 {[%clk 0:09:34.5]} 16. Bf4 {[%clk 0:09:23.4]} 16... Nd4 {[%clk
0:08:39.9]} 17. Nxd4 {[%clk 0:09:12.6]} 17... Rxd5 {[%clk 0:08:13.8]} 18. Nf5
{[%clk 0:09:09.4]} 18... Bd8 {[%clk 0:08:14]} 19. Rxd5 {[%clk 0:08:30.3]} 19...
Bxd5 {[%clk 0:08:15.9]} 20. Rd1 {[%clk 0:08:22.9]} 20... Bxa2 {[%clk 0:07:40.2]}
21. Rd6 {[%clk 0:07:46.5]} 21... Qb7 {[%clk 0:07:19.1]} 22. Nxg7 {[%clk
0:07:26.5]} 22... Bb1 {[%clk 0:06:45.9]} 23. Qh5 {[%clk 0:03:13.3]} 23... Bg6
{[%clk 0:06:39.2]} 24. Qh6 {[%clk 0:03:13.8]} 24... Qe4 {[%clk 0:05:56.5]} 25.
h4 {[%clk 0:03:07.5]} 25... Qe1+ {[%clk 0:05:28.7]} 26. Kh2 {[%clk 0:03:08.1]}
26... Qxf2 {[%clk 0:05:28]} 27. Bg3 {[%clk 0:02:40.3]} 27... Qe2 {[%clk
0:05:07.2]} 28. h5 {[%clk 0:02:11.8]} 28... Be4 {[%clk 0:04:40.4]} 29. Rd2
{[%clk 0:02:07.9]} 29... Qg4 {[%clk 0:04:41.4]} 30. e6 {[%clk 0:01:35.7]} 30...
Bg5 {[%clk 0:03:38.8]} 31. exf7+ {[%clk 0:01:34.1]} 31... Kh8 {[%clk 0:03:32.3]}
32. Qe6 {[%clk 0:00:47]} 32... Bf5 {[%clk 0:02:03.4]} 33. Qe5 {[%clk 0:00:24.1]}
33... Rxf7 {[%clk 0:01:11.2]} 34. Ne6+ {[%clk 0:00:23]} 34... Bf6 {[%clk
0:00:49.1]} 35. Rd8+ {[%clk 0:00:21.5]} 35... Qg8 {[%clk 0:00:49]} 36. Rxg8+
{[%clk 0:00:18.6]} 36... Kxg8 {[%clk 0:00:50.9]} 37. Qb8+ {[%clk 0:00:19.5]} 1-0

[Event "GrandPrix_30.05"]
[Site "Chess.com"]
[Date "2020.05.30"]
[Round "2"]
[White "DaggiGretarsson"]
[Black "matej2221"]
[Result "1-0"]
[WhiteElo "2089"]
[BlackElo "2120"]
[TimeControl "600+2"]
[EndTime "8:53:04 PDT"]
[Termination "DaggiGretarsson won by resignation"]

1. d4 {[%clk 0:10:00.2]} 1... Nf6 {[%clk 0:09:59.8]} 2. c4 {[%clk 0:10:00.6]}
2... e6 {[%clk 0:10:00.4]} 3. Nf3 {[%clk 0:10:00.6]} 3... b6 {[%clk 0:09:58.9]}
4. Bf4 {[%clk 0:10:00.1]} 4... Bb7 {[%clk 0:09:57.1]} 5. e3 {[%clk 0:10:00.8]}
5... d5 {[%clk 0:09:55]} 6. Nc3 {[%clk 0:09:55.5]} 6... Bd6 {[%clk 0:09:35.4]}
7. Bg3 {[%clk 0:09:52.5]} 7... O-O {[%clk 0:09:30.3]} 8. Qc2 {[%clk 0:09:51.2]}
8... a6 {[%clk 0:09:22.9]} 9. cxd5 {[%clk 0:09:32.7]} 9... exd5 {[%clk
0:09:13.4]} 10. Rd1 {[%clk 0:09:12.5]} 10... c5 {[%clk 0:09:05.6]} 11. dxc5
{[%clk 0:09:05.1]} 11... bxc5 {[%clk 0:08:58.5]} 12. Bc4 {[%clk 0:08:57.3]}
12... d4 {[%clk 0:08:51.2]} 13. exd4 {[%clk 0:08:56.6]} 13... Re8+ {[%clk
0:08:44.2]} 14. Be2 {[%clk 0:08:37.5]} 14... Bxf3 {[%clk 0:08:14.6]} 15. gxf3
{[%clk 0:08:35.3]} 15... Bxg3 {[%clk 0:08:13]} 16. hxg3 {[%clk 0:08:13.4]} 16...
cxd4 {[%clk 0:08:13.8]} 17. Qa4 {[%clk 0:08:12.2]} 17... d3 {[%clk 0:07:58.6]}
18. Rxd3 {[%clk 0:08:10.9]} 18... Qb6 {[%clk 0:07:41]} 19. Nd5 {[%clk
0:07:47.4]} 19... Qc6 {[%clk 0:07:18.7]} 20. Nxf6+ {[%clk 0:07:01.6]} 20... gxf6
{[%clk 0:07:20.6]} 21. Qg4+ {[%clk 0:06:46.9]} 21... Kf8 {[%clk 0:06:40.9]} 22.
Qf4 {[%clk 0:05:50]} 22... Nd7 {[%clk 0:06:27.2]} 23. Qh6+ {[%clk 0:05:20.8]}
23... Ke7 {[%clk 0:06:22.7]} 24. O-O {[%clk 0:05:20.3]} 24... Kd8 {[%clk
0:05:47.2]} 25. Rc1 {[%clk 0:04:42.3]} 25... Qb5 {[%clk 0:05:14.9]} 26. Qxf6+
{[%clk 0:04:40.1]} 26... Re7 {[%clk 0:05:15.7]} 27. Qh4 {[%clk 0:03:11.4]} 27...
Qxb2 {[%clk 0:04:56.7]} 28. Rcd1 {[%clk 0:01:25.8]} 28... Qxe2 {[%clk
0:04:56.6]} 29. Rxd7+ {[%clk 0:01:26.4]} 29... Ke8 {[%clk 0:04:57.8]} 30. R7d3
{[%clk 0:01:20.2]} 30... f5 {[%clk 0:03:15.2]} 31. Qh5+ {[%clk 0:01:06.1]} 31...
Kf8 {[%clk 0:03:16.5]} 32. Rd8+ {[%clk 0:00:59.8]} 32... Re8 {[%clk 0:03:02.5]}
33. Qxf5+ {[%clk 0:00:59.2]} 33... Kg8 {[%clk 0:02:57.3]} 34. Qd5+ {[%clk
0:00:58.4]} 34... Kg7 {[%clk 0:02:58.4]} 35. Rd7+ {[%clk 0:00:57.6]} 35... Kh8
{[%clk 0:02:58.9]} 36. Qd4+ {[%clk 0:00:53.9]} 36... Qe5 {[%clk 0:02:58.1]} 37.
Qh4 {[%clk 0:00:46.7]} 37... Qf5 {[%clk 0:02:52.7]} 38. R1d5 {[%clk 0:00:44.3]}
38... Re1+ {[%clk 0:01:42.3]} 39. Kg2 {[%clk 0:00:43.7]} 39... Qg6 {[%clk
0:01:37.2]} 40. Rg5 {[%clk 0:00:26.5]} 1-0

[Event "GrandPrix_30.05"]
[Site "Chess.com"]
[Date "2020.05.30"]
[Round "2"]
[White "DinaBelenkaya"]
[Black "Evgeny81"]
[Result "0-1"]
[WhiteElo "1625"]
[BlackElo "2406"]
[TimeControl "600+2"]
[EndTime "8:53:13 PDT"]
[Termination "Evgeny81 won by resignation"]

1. e4 {[%clk 0:10:01.9]} 1... e5 {[%clk 0:10:00.6]} 2. Nf3 {[%clk 0:09:57.7]}
2... Nc6 {[%clk 0:10:01.4]} 3. d4 {[%clk 0:09:58.1]} 3... exd4 {[%clk
0:10:01.4]} 4. Nxd4 {[%clk 0:10:00]} 4... Qf6 {[%clk 0:09:55.5]} 5. Nxc6 {[%clk
0:08:41.8]} 5... Bc5 {[%clk 0:09:50.6]} 6. Qf3 {[%clk 0:08:33.1]} 6... bxc6
{[%clk 0:09:48.8]} 7. Nc3 {[%clk 0:08:28.4]} 7... Qxf3 {[%clk 0:09:46.2]} 8.
gxf3 {[%clk 0:08:29.3]} 8... Ne7 {[%clk 0:09:39.5]} 9. Na4 {[%clk 0:08:08.7]}
9... Bd4 {[%clk 0:09:34.8]} 10. c3 {[%clk 0:07:28]} 10... Bf6 {[%clk 0:09:28.5]}
11. h4 {[%clk 0:06:45.7]} 11... h5 {[%clk 0:08:42.6]} 12. Nc5 {[%clk 0:05:42.9]}
12... d6 {[%clk 0:08:30.9]} 13. Na6 {[%clk 0:05:26.2]} 13... Bxa6 {[%clk
0:07:48.3]} 14. Bxa6 {[%clk 0:05:28.1]} 14... Rb8 {[%clk 0:07:40.8]} 15. Ke2
{[%clk 0:04:41]} 15... Ng6 {[%clk 0:07:17.1]} 16. f4 {[%clk 0:04:34.9]} 16...
Nxh4 {[%clk 0:07:06.4]} 17. f5 {[%clk 0:03:25]} 17... g5 {[%clk 0:07:00.9]} 18.
fxg6 {[%clk 0:03:22.9]} 18... Nxg6 {[%clk 0:06:39]} 19. Rh3 {[%clk 0:03:07.7]}
19... Rxb2+ {[%clk 0:05:22.4]} 20. Bxb2 {[%clk 0:03:00.8]} 20... Nf4+ {[%clk
0:05:22.9]} 21. Ke3 {[%clk 0:02:30.8]} 21... Nxh3 {[%clk 0:05:24.8]} 22. Rh1
{[%clk 0:02:06.4]} 22... Ng5 {[%clk 0:05:12.9]} 23. f4 {[%clk 0:02:05.2]} 23...
Ne6 {[%clk 0:05:13.5]} 24. Be2 {[%clk 0:01:36]} 24... h4 {[%clk 0:05:04.6]} 25.
Bg4 {[%clk 0:01:34.5]} 25... Ke7 {[%clk 0:04:15.7]} 26. Kf3 {[%clk 0:01:00.5]}
26... Rb8 {[%clk 0:03:53.3]} 27. Ba3 {[%clk 0:00:58.1]} 27... Bxc3 {[%clk
0:03:19.8]} 28. Rxh4 {[%clk 0:00:56.7]} 28... Nd4+ {[%clk 0:02:53.4]} 29. Kg2
{[%clk 0:00:55.3]} 29... Nc2 {[%clk 0:02:19.3]} 30. Bc1 {[%clk 0:00:53]} 30...
Rb1 {[%clk 0:02:19.9]} 31. Rh1 {[%clk 0:00:31]} 31... Ne1+ {[%clk 0:02:18.2]}
32. Rxe1 {[%clk 0:00:27.2]} 32... Bxe1 {[%clk 0:02:18.7]} 33. Be3 {[%clk
0:00:28.7]} 33... Bd2 {[%clk 0:02:05.6]} 34. Bd4 {[%clk 0:00:17.8]} 34... Bxf4
{[%clk 0:02:02.8]} 35. Kf3 {[%clk 0:00:17.9]} 35... Be5 {[%clk 0:01:58.6]} 36.
Bf2 {[%clk 0:00:12.5]} 36... a5 {[%clk 0:01:50.9]} 37. Bh4+ {[%clk 0:00:09.6]}
37... Bf6 {[%clk 0:01:45.6]} 38. Bf2 {[%clk 0:00:06.4]} 38... Ra1 {[%clk
0:01:44.3]} 39. Kf4 {[%clk 0:00:04]} 39... Rxa2 {[%clk 0:01:42.4]} 40. Ba7
{[%clk 0:00:05]} 40... a4 {[%clk 0:01:30.6]} 41. Bd1 {[%clk 0:00:05.9]} 41... a3
{[%clk 0:01:28.1]} 42. Bb3 {[%clk 0:00:06.3]} 42... Rb2 {[%clk 0:01:27.8]} 43.
Bc4 {[%clk 0:00:07.2]} 43... a2 {[%clk 0:01:25]} 0-1

[Event "GrandPrix_30.05"]
[Site "Chess.com"]
[Date "2020.05.30"]
[Round "2"]
[White "Korchmar_Vasiliy"]
[Black "Grebnev_A"]
[Result "1-0"]
[WhiteElo "2089"]
[BlackElo "2186"]
[TimeControl "600+2"]
[EndTime "8:53:14 PDT"]
[Termination "Korchmar_Vasiliy won by resignation"]

1. d4 {[%clk 0:10:01.9]} 1... Nf6 {[%clk 0:10:00.5]} 2. c4 {[%clk 0:10:01.7]}
2... g6 {[%clk 0:10:01.6]} 3. Nc3 {[%clk 0:10:02.3]} 3... Bg7 {[%clk 0:10:02.7]}
4. e4 {[%clk 0:10:03.2]} 4... O-O {[%clk 0:10:03.5]} 5. Nf3 {[%clk 0:10:03.6]}
5... d6 {[%clk 0:10:04.6]} 6. h3 {[%clk 0:10:04.2]} 6... e5 {[%clk 0:10:04.5]}
7. d5 {[%clk 0:10:03.4]} 7... a5 {[%clk 0:09:56.8]} 8. g4 {[%clk 0:10:01.6]}
8... Na6 {[%clk 0:09:57.2]} 9. Be3 {[%clk 0:10:00.9]} 9... Nc5 {[%clk 0:09:57]}
10. Nd2 {[%clk 0:10:00.9]} 10... c6 {[%clk 0:09:50.5]} 11. Be2 {[%clk
0:09:59.4]} 11... Bd7 {[%clk 0:09:50.4]} 12. g5 {[%clk 0:09:55.7]} 12... Ne8
{[%clk 0:09:34.6]} 13. h4 {[%clk 0:09:55.4]} 13... cxd5 {[%clk 0:09:35.9]} 14.
cxd5 {[%clk 0:09:54.2]} 14... Rb8 {[%clk 0:09:09.7]} 15. Nc4 {[%clk 0:08:23.4]}
15... b5 {[%clk 0:07:58.8]} 16. Nxd6 {[%clk 0:08:19.6]} 16... Nxd6 {[%clk
0:08:00.7]} 17. Bxc5 {[%clk 0:08:20.2]} 17... Qc7 {[%clk 0:08:02.2]} 18. b4
{[%clk 0:07:36.5]} 18... Nb7 {[%clk 0:07:55.4]} 19. d6 {[%clk 0:07:34.3]} 19...
Qd8 {[%clk 0:05:50.9]} 20. Nd5 {[%clk 0:07:09.8]} 20... f6 {[%clk 0:05:01.1]}
21. h5 {[%clk 0:06:15.3]} 21... Nxc5 {[%clk 0:03:31.8]} 22. bxc5 {[%clk
0:06:13.9]} 22... Rf7 {[%clk 0:03:32.1]} 23. hxg6 {[%clk 0:06:06.5]} 23... hxg6
{[%clk 0:03:34]} 24. Rc1 {[%clk 0:03:52.1]} 24... Rc8 {[%clk 0:02:43.5]} 25. Bg4
{[%clk 0:03:43]} 25... f5 {[%clk 0:01:38]} 26. exf5 {[%clk 0:03:43.8]} 26...
Qxg5 {[%clk 0:01:31.1]} 27. Ne7+ {[%clk 0:01:19.6]} 27... Rxe7 {[%clk
0:01:23.6]} 28. dxe7 {[%clk 0:01:21.5]} 28... Bf6 {[%clk 0:00:20.7]} 29. Rc3
{[%clk 0:01:07.2]} 29... Bxf5 {[%clk 0:00:16.7]} 30. Qd5+ {[%clk 0:00:56.7]}
30... Kg7 {[%clk 0:00:17.7]} 31. Rh7+ {[%clk 0:00:46.3]} 31... Kxh7 {[%clk
0:00:13.9]} 32. Qf7+ {[%clk 0:00:46.8]} 32... Kh6 {[%clk 0:00:05.4]} 33. Rh3+
{[%clk 0:00:48.7]} 33... Qh4 {[%clk 0:00:07.3]} 34. Rxh4+ {[%clk 0:00:48.9]}
34... Bxh4 {[%clk 0:00:09.2]} 35. Bxf5 {[%clk 0:00:50]} 35... gxf5 {[%clk
0:00:07.3]} 36. Qe6+ {[%clk 0:00:51.1]} 1-0